[Event "IX Famalicao Open 2022"]
[Site "Vila Nova de Famalicao"]
[Date "2022.07.26"]
[Round "3.2"]
[White "Aditya Mittal"]
[Black "Romano, Joao"]
[Result "1-0"]
[ECO "D30"]
[WhiteElo "2480"]
[BlackElo "2029"]
[Annotator "TA"]
[PlyCount "51"]
[EventDate "2022.07.25"]
[EventType "tourn"]
[EventCountry "POR"]
[SourceTitle "playchess.com"]
[Source "ChessBase"]
[SourceQuality "1"]
[TimeControl "5400+30"]

{[%evp 15,51,40,83,80,86,87,133,132,125,122,144,143,181,176,181,168,179,162,154,166,163,154,156,156,158,153,180,163,208,180,220,219,219,207,213,212,264,263]} 1. d4 {[%emt 0:00:04]} d5 {[%emt 0:00:10]} 2. c4 {[%emt 0:00:03]} e6 {[%emt 0:00:12]} 3. Nf3 {[%emt 0:00:03]} c5 {[%emt 0:01:14]} 4. cxd5 {[%emt 0:00:15]} exd5 {[%emt 0:00:16]} 5. g3 {[%emt 0:00:09]} Nc6 {[%emt 0:00:58]} 6. Bg2 {[%emt 0:00:03]} Nf6 {[%emt 0:00:51]} 7. O-O {[%emt 0:00:05]} cxd4 {[%emt 0:18:59]} 8. Nxd4 {[%emt 0:00:05]} Bc5 {[%emt 0:00:04] [#] is cutting edge theory.} 9. Nxc6 {[%emt 0:03:20] D30: Queen's Gambit Declined: Systems without Nc3.} bxc6 {[%emt 0:00:07] [#]} 10. Qc2 $1 {[%emt 0:00:08]} Bb6 {[%emt 0:00:07]} (10... Nd7 $142) 11. Qxc6+ $16 {[%emt 0:05:38] White is clearly better.} Bd7 {[%emt 0:00:08]} 12. Qd6 {[%emt 0:00:20]} Rc8 {[%emt 0:03:20] [#]} 13. Bg5 $146 {[%emt 0:05:55]} ({Weaker is} 13. Bxd5 Bc7 14. Qc5 Bb6 $17) ({Predecessor:} 13. Nc3 d4 14. Nd5 Nxd5 15. Bxd5 h5 16. Qe5+ Kf8 17. Qd6+ Kg8 18. Bg5 Qxg5 19. Qxd7 {1-0 (90) Gusarov,G (2354)-Maghsoodloo,P (2676) Chess.com INT 2020}) 13... Rc6 {[%emt 0:00:23]} 14. Qa3 {[%emt 0:04:46] aiming for Nc3.} h6 {[%emt 0:06:34]} 15. Bxf6 {[%emt 0:01:11]} Qxf6 {[%emt 0:02:31]} 16. Bxd5 {[%emt 0:15:08]} Bc5 {[%emt 0:04:37]} 17. Qf3 {[%emt 0:06:06]} Qxf3 {[%emt 0:01:15]} 18. exf3 {[%emt 0:00:11]} Rb6 {[%emt 0:01:23]} 19. Re1+ {[%emt 0:00:38]} Kf8 {[%emt 0:00:05]} 20. Re2 {[%emt 0:02:30]} h5 {[%emt 0:04:22]} 21. Nc3 {[%emt 0:09:23]} Rhh6 {[%emt 0:05:13]} 22. Rd1 {[%emt 0:03:28][%cal Od5f7] And now Bxf7! would win.} Be8 {[%emt 0:01:01]} 23. h4 {[%emt 0:02:11]} Rb8 {[%emt 0:02:42]} 24. Kg2 {[%emt 0:01:06]} Rhb6 {[%emt 0:02:55]} 25. Bb3 {[%emt 0:00:20]} R6b7 {[%emt 0:01:35]} 26. Rd5 {[%emt 0:01:42] White took control after the opening.  Weighted Error Value: White=0.05 (flawless) /Black=0.20 (precise)} 1-0

[Event "IX Famalicao Open 2022"]
[Site "Vila Nova de Famalicao"]
[Date "2022.07.26"]
[Round "3.4"]
[White "Das, Sayantan"]
[Black "Marques, Ricardo Taborda Trig"]
[Result "1-0"]
[ECO "B52"]
[WhiteElo "2449"]
[BlackElo "1991"]
[Annotator "TA"]
[PlyCount "67"]
[EventDate "2022.07.25"]
[EventType "tourn"]
[EventCountry "POR"]
[SourceTitle "playchess.com"]
[Source "ChessBase"]
[SourceQuality "1"]
[TimeControl "5400+30"]

{[%evp 9,67,12,43,16,14,0,12,6,14,0,11,0,7,-17,17,32,18,11,35,39,60,27,28,15,49,36,41,23,50,41,69,52,56,57,67,63,57,53,79,63,98,100,155,175,156,155,165,117,232,221,234,225,401,342,452,401,3100,2749,3100,2327]} 1. e4 c5 2. Nf3 d6 3. Bb5+ Bd7 4. c4 Nc6 5. Nc3 g6 6. O-O {B52: Sicilian: Moscow Variation with 3...Bd7.} Bg7 7. d3 Nf6 8. h3 {The position is equal.} O-O 9. Be3 a6 10. Ba4 Rb8 11. Qd2 {[#]} Ne8 $146 {[%cal Ob7b5]} ({Predecessor:} 11... Nh5 12. Bh6 Bxh6 13. Qxh6 f6 14. Bd1 e5 15. Qd2 Qa5 16. Qh6 Qd8 17. Qd2 Qa5 18. Qh6 Qd8 {½-½ (18) Frank,H-Goerz,P GER email 2009}) 12. Bxc6 Bxc6 13. d4 cxd4 14. Nxd4 Nf6 15. Nxc6 bxc6 16. Rac1 Qd7 17. b3 Rfd8 18. Rfd1 (18. f3 {keeps more tension.} Qb7 19. Bg5 Nh5 20. Rcd1) 18... Qe6 19. Qd3 c5 20. Re1 Nd7 21. f4 {Against Ne5} Nb6 22. Bd2 Qd7 23. Ne2 Qa7 24. Ba5 Rdc8 25. Rcd1 Na8 (25... Re8 $142) 26. h4 {[%cal Bh3h4,Bh4h5][%mdl 32]} Nc7 {[%cal Oc7b5]} 27. h5 Ne6 28. Bc3 {Inhibits Nd4.} ({Better is} 28. hxg6 $18 hxg6 29. f5 Bd4+ 30. Nxd4 Nxd4 31. fxg6) 28... Qd7 (28... gxh5 $16 {was called for.} 29. Bxg7 Nxg7) 29. hxg6 $18 hxg6 30. f5 Nf8 (30... Nd4 31. Nxd4 cxd4 32. Bxd4 Bxd4+ 33. Qxd4 Qc7 34. fxg6 fxg6) 31. Nf4 {[#] Hoping for Bxg7.} Bxc3 32. Qxc3 {Threatens to win with Kf2.} gxf5 (32... e5 $142 33. Nd5 Nh7) 33. Nh5 {[%csl Gh5][%cal Rc3g7]} f6 34. Qg3+ {Weighted Error Value: White=0.11 (very precise) /Black=0.32} 1-0

[Event "IX Famalicao Open 2022"]
[Site "Vila Nova de Famalicao"]
[Date "2022.07.26"]
[Round "3.5"]
[White "Harisurya Bharadwaj Gundepudi"]
[Black "Abdisalimov, Abdimalik"]
[Result "0-1"]
[ECO "A40"]
[WhiteElo "1924"]
[BlackElo "2437"]
[Annotator "TA"]
[PlyCount "124"]
[EventDate "2022.07.25"]
[EventType "tourn"]
[EventCountry "POR"]
[SourceTitle "playchess.com"]
[Source "ChessBase"]
[SourceQuality "1"]
[TimeControl "5400+30"]

{[%evp 11,124,0,21,28,29,-38,-24,-39,-31,-36,-40,-35,-21,-63,-50,-65,-80,-108,-116,-118,-114,-154,-127,-176,-179,-204,-199,-206,-176,-208,-167,-200,-162,-161,-153,-163,-141,-144,-142,-210,-179,-242,-242,-312,-203,-493,-482,-430,-329,-509,-456,-497,-503,-626,-643,-697,-637,-990,-908,-935,-988,-937,-879,-874,-880,-938,-879,-842,-739,-713,-691,-670,-670,-1110,-631,-641,-564,-1014,-643,-612,-538,-1041,-645,-637,-627,-620,-619,-585,-579,-529,-517,-2396,-951,-5704,-1090,-29978,-1124,-1066,-1037,-29969,-1706,-1260,-1109,-867,-829,-2333,-2545,-4133,-3764,-29978,-29979,-29979,-29980,-29986,-5114]} 1. d4 {[%emt 0:01:29]} e6 {[%emt 0:03:07]} 2. Bf4 {[%emt 0:00:45]} c5 {[%emt 0:01:19]} 3. e3 {[%emt 0:03:37]} Nf6 {[%emt 0:02:07]} 4. c3 {[%emt 0:00:07]} Nc6 {[%emt 0:00:47]} 5. Nd2 {[%emt 0:00:03]} d5 {[%emt 0:00:19]} 6. Ngf3 {[%emt 0:00:05]} cxd4 {[%emt 0:00:31]} 7. exd4 {[%emt 0:00:07] D02: 1 d4 d5 2 Nf3 sidelines, including 2...Nf6 3 g3 and 2...Nf6 3 Bf4.} Nh5 {[%emt 0:01:00]} 8. Be5 {[%emt 0:01:56]} ({White should play} 8. Be3 $11) 8... f6 $15 {[%emt 0:00:13]} 9. Bg3 {[%emt 0:00:44] Black has an edge.} g6 {[%emt 0:03:14]} 10. Bd3 {[%emt 0:01:52] 10.Be2 might become the main line.} Bg7 {[%emt 0:00:19]} 11. O-O {[%emt 0:00:46]} O-O {[%emt 0:00:19]} 12. Re1 {[%emt 0:00:33] Inhibits e5.} Nxg3 {[%emt 0:00:47]} 13. hxg3 {[%emt 0:00:26]} e5 {[%emt 0:00:05][%cal Be6e5,Be5e4][%mdl 32] [#]} 14. Bb5 $146 {[%emt 0:03:32]} ({Predecessor:} 14. dxe5 fxe5 15. c4 e4 16. cxd5 exf3 17. gxf3 Ne5 18. Be4 Nf7 19. f4 Nd6 20. Bg2 {0-1 (44) Gajewski,G (2626)-Alekseev,E (2620) Moscow 2019}) 14... e4 {[%emt 0:00:14]} 15. Nh2 {[%emt 0:00:08]} f5 {[%emt 0:00:05]} 16. Ndf1 {[%emt 0:00:44]} Qb6 {[%emt 0:03:02]} 17. Bxc6 {[%emt 0:05:34]} (17. Qb3 $17 {keeps fighting.}) 17... bxc6 $19 {[%emt 0:00:21]} ({Inferior is} 17... Qxc6 18. Nd2 $17) 18. b4 {[%emt 0:00:05]} a5 {[%emt 0:01:13]} 19. a3 {[%emt 0:01:41]} Rf7 {[%emt 0:00:19]} 20. Qd2 {[%emt 0:02:42]} Rfa7 {[%emt 0:00:20] [#] aiming for ...axb4.} 21. Qb2 {[%emt 0:00:07]} g5 {[%emt 0:06:59]} 22. Nd2 {[%emt 0:01:19]} a4 {[%emt 0:00:24] Inhibits Nb3.} 23. f3 {[%emt 0:02:05]} h5 {[%emt 0:02:27] Inhibits g4.} 24. fxe4 {[%emt 0:00:38]} fxe4 {[%emt 0:00:42]} 25. Nhf1 {[%emt 0:00:06]} (25. g4 $17) 25... Ba6 {[%emt 0:00:59] Hoping for ...Rf7.} 26. Qa2 {[%emt 0:08:30]} (26. Nxe4 {might work better.} dxe4 27. Qa2+ Kh8 28. Nd2) 26... Rf7 {[%emt 0:01:03]} 27. Ne3 {[%emt 0:02:54]} Qd8 {[%emt 0:02:30]} 28. Qc2 $2 {[%emt 0:01:46]} (28. Rad1 {was necessary.}) 28... Bd3 {[%emt 0:01:41]} (28... Qf6 $2 29. Qxa4 Qf2+ 30. Kh1 $19) 29. Qa2 {[%emt 0:01:06]} Qd6 {[%emt 0:00:23]} ({Not} 29... Qf6 $2 30. Rf1 Bxf1 31. Rxf1 $19) 30. Ndf1 {[%emt 0:00:21]} (30. Rf1 $142) 30... Raf8 {[%emt 0:00:12]} 31. Rad1 {[%emt 0:03:55]} g4 {[%emt 0:01:05]} ({Don't blunder} 31... h4 $2 32. g4 $19) 32. Rxd3 {[%emt 0:00:41]} exd3 {[%emt 0:00:05]} 33. Qd2 {[%emt 0:00:06]} Qg6 {[%emt 0:01:16]} 34. Rd1 {[%emt 0:00:18]} Bh6 {[%emt 0:00:03]} 35. Qxd3 {[%emt 0:00:31]} Qxd3 {[%emt 0:00:02]} 36. Rxd3 {[%emt 0:00:13]} Re8 {[%emt 0:00:01]} 37. c4 {[%emt 0:05:17]} dxc4 {[%emt 0:00:21]} 38. Rc3 {[%emt 0:00:04]} Rf6 {[%emt 0:02:14]} 39. Nc2 {[%emt 0:00:26]} Re2 {[%emt 0:00:13]} 40. Rxc4 {[%emt 0:00:09]} Kh7 {[%emt 0:00:29] [#] ...Bc1 is the strong threat.} 41. Rc3 {[%emt 0:01:36]} Kg6 {[%emt 0:02:19]} 42. Rc5 {[%emt 0:01:17]} Kf7 {[%emt 0:00:10]} 43. Rc3 {[%emt 0:01:18]} Kg7 {[%emt 0:05:02]} 44. Rc5 {[%emt 0:00:58]} Kg6 {[%emt 0:02:31] And now ...Bc1 would win.} 45. Rc3 {[%emt 0:00:15]} Bg5 {[%emt 0:02:00]} 46. Rc5 {[%emt 0:00:44]} h4 {[%emt 0:06:25]} 47. gxh4 {[%emt 0:01:02]} Bxh4 {[%emt 0:00:25] White must now prevent ...Bf2+.} 48. g3 {[%emt 0:01:24]} Bg5 {[%emt 0:00:06]} 49. Rc3 {[%emt 0:01:46]} Bd2 {[%emt 0:00:26]} 50. Nxd2 {[%emt 0:00:25]} Rxd2 {[%emt 0:00:37][%mdl 4096] Endgame KRR-KRN} 51. Rc5 {[%emt 0:02:04]} (51. Ne3 $142 Rxd4 52. Nc4) 51... Rd3 {[%emt 0:00:19]} (51... Rd1+ $142 52. Ne1 Rxe1+ 53. Kg2 Rfe6 54. Rc2 R6e2+ 55. Rxe2 Rxe2+ 56. Kf1 Ra2 57. Ke1 Rxa3 58. Ke2 Rxg3 59. d5 a3 60. d6 a2 61. d7 a1=Q 62. d8=Q Qb2+ 63. Kf1 Qc1+ 64. Qd1 Qxd1+ 65. Kf2 Rf3+ 66. Kg2 Qf1+ 67. Kh2 Rh3#) 52. Kg2 {[%emt 0:00:14]} Kf7 {[%emt 0:00:04]} (52... Rdf3 $142 53. Ne1 Rf2+ 54. Kh1 Rf1+ 55. Kh2 Rxe1) 53. Rc4 {[%emt 0:00:36]} Ke7 {[%emt 0:00:38]} (53... Rd2+ $142 54. Kg1 Rd1+ 55. Ne1 Rxe1+ 56. Kg2 Rf3 57. Rc2 Rxa3 58. Kf2 Rb1 59. b5 cxb5 60. Kg2 Rab3 61. Rc7+ Ke6 62. Kf2 a3 63. Rc6+ Kd5 64. Rf6 a2 65. Rf5+ Kc4 66. Kg2 R3b2+ 67. Rf2 Kxd4 68. Rxb2 Rxb2+ 69. Kh1 a1=Q#) 54. Rc5 {[%emt 0:00:21]} Kd7 {[%emt 0:00:24] ( -> ...Rd2+)} 55. d5 {[%emt 0:01:00]} cxd5 {[%emt 0:01:33]} (55... Rd2+ $142 56. Kg1 Rd1+ 57. Ne1 Rxe1+ 58. Kg2 cxd5 59. b5 Re2+ 60. Kg1 Ra2 61. b6 Rxb6 62. Rc1 Rxa3 63. Rf1 Ra2 64. Rf7+ Kd6 65. Rf6+ Kc5 66. Rf1 Rc2 67. Rf8 Rb1+ 68. Rf1 Rxf1+ 69. Kxf1 a3 70. Ke1 a2 71. Kd1 Rh2 72. Ke1 a1=Q#) 56. b5 {[%emt 0:00:08]} Rb6 {[%emt 0:00:34]} 57. Nb4 {[%emt 0:00:05]} Rd2+ {[%emt 0:00:03]} 58. Kg1 {[%emt 0:00:07]} Kd6 {[%emt 0:00:06]} 59. Rc8 {[%emt 0:00:54]} Rxb5 {[%emt 0:00:04]} 60. Rd8+ {[%emt 0:00:10]} Kc7 {[%emt 0:00:24] Black mates.} 61. Ra8 {[%emt 0:00:38]} Kb7 {[%emt 0:00:15]} 62. Rxa4 {[%emt 0:00:20]} Rc5 {[%emt 0:00:38] White got outplayed after the opening.  Weighted Error Value: White=1.10/Black=0.80} (62... d4 $142 63. Kf1 Rh5 64. Ke1 Rb2 65. Nc2 Rxc2 66. Rb4+ Kc6 67. Rc4+ Rxc4 68. Ke2 Rc3 69. Kf2 Rc2+ 70. Kg1 Rb5 71. Kh1 Rb1#) 0-1

[Event "IX Famalicao Open 2022"]
[Site "Vila Nova de Famalicao"]
[Date "2022.07.26"]
[Round "3.6"]
[White "Nigmatov, Ortik"]
[Black "Goncalves, Samuel Jesus P"]
[Result "0-1"]
[ECO "B12"]
[WhiteElo "2437"]
[BlackElo "1957"]
[Annotator "TA"]
[PlyCount "132"]
[EventDate "2022.07.25"]
[EventType "tourn"]
[EventCountry "POR"]
[SourceTitle "playchess.com"]
[Source "ChessBase"]
[SourceQuality "1"]
[TimeControl "5400+30"]

{[%evp 9,132,11,12,19,14,11,19,0,17,0,5,-12,-5,-14,-14,-39,-36,-25,-28,-41,-50,-61,-46,-47,-47,-70,-47,-82,-83,-82,-66,-87,-62,-143,-55,-62,-60,-50,-50,-65,-13,-175,-175,-175,-175,-175,-175,-175,-175,-192,-191,-173,-133,-289,-234,-326,-244,-293,-207,-210,-171,-215,-209,-200,-191,-278,-269,-246,-249,-335,-137,-130,-120,-120,0,-287,-269,-281,-269,-245,-271,-263,-241,-245,-245,-433,-327,-423,-420,-532,-527,-760,-736,-1110,-1042,-1103,-1096,-992,-704,-1742,-1660,-1537,-1535,-29956,-29957,-29958,-29960,-29961,-29952,-29946,-29955,-29954,-29953,-5349,-4662,-4630,-4622,-4622,-4622,-4618,-4618,-29989,-29990,-29990,-29991]} 1. e4 c6 2. d4 d5 3. e5 Bf5 4. h4 h5 5. Bd3 Bxd3 6. Qxd3 {[%cal Oe5e6] B12: Caro-Kann: Advance Variation.} Qa5+ 7. Nd2 {[%cal Oe5e6] Threatens to win with e6!} e6 $1 8. Ngf3 {The position is equal.} Nh6 9. O-O Nf5 10. c4 {10.Nb3 deserves study.} Be7 11. g3 O-O {[%cal Bh8f8,Bf8d8,Bd8d5][%mdl 32]} 12. b3 Rd8 13. Bb2 c5 14. cxd5 Rxd5 15. Nc4 Qa6 16. Qe4 cxd4 {[#]} 17. Bxd4 $146 ({Predecessor:} 17. Nxd4 Nxd4 18. Bxd4 Nc6 19. Bb2 Rad8 20. a4 Rd3 21. Qe2 Rxb3 22. Rac1 Na5 23. Ba1 {0-1 (34) Moiseenko,V (2542)-Murzin,V (2513) Sochi 2021}) 17... Nc6 18. Be3 Rad8 19. Bf4 Ncd4 20. Ng5 Qc6 21. Kg2 {[#]} ({Better is} 21. Nf3 $15) 21... b5 (21... f6 $1 $17 {[%cal Rf6g5]} 22. exf6 gxf6) 22. Ne3 $15 Bxg5 {Black is more active.} 23. Bxg5 {Rac1 is the strong threat.} Nxe3+ 24. fxe3 Nf5 (24... Qc2+ $15 25. Qxc2 Nxc2) 25. Bxd8 $2 (25. Kh3 $1 $11 Rc8 26. Qf3 Rxe5 27. Rac1) 25... Rd2+ $19 {[%mdl 64] Discovered Attack} 26. Kf3 Qxe4+ 27. Kxe4 Nxg3+ {[%cal Bf5g3,Bg3f1,Bf1h2,Bh2g4][%mdl 32]} 28. Kf3 Nxf1 {[%mdl 4096] Endgame KRB-KRN} 29. Be7 Nh2+ 30. Ke4 Ng4 31. Bc5 $2 (31. a4 $17) 31... a6 32. Bd4 Rc2 33. a4 b4 34. Kd3 Rc6 35. a5 f6 36. exf6 e5 (36... Nxf6 37. Ra4 $11) 37. Bb2 (37. Ba7 $142) 37... Nf2+ ({Weaker is} 37... gxf6 38. Rc1 Rd6+ 39. Ke2 $17) ({Worse is} 37... Rxf6 38. Ke4 $17) 38. Kd2 gxf6 39. Ra4 {[#]} Ne4+ (39... Rd6+ $1 $19 {and Black stays clearly on top.} 40. Kc2 Nd3) 40. Kd1 $17 Rd6+ 41. Kc2 Rc6+ ({Black should play} 41... Rd2+ $17 42. Kb1 Rd1+ 43. Ka2 Rd5 44. Rxb4 Rxa5+ 45. Kb1 Ng3) 42. Kb1 $2 {[%mdl 8192] Black keeps a firm grip on the game.} (42. Kd1 $11 {and White is okay.}) 42... Rc5 $19 43. Rxb4 Nd2+ 44. Ka2 Rxa5+ 45. Ba3 Rb5 {Against Rb6} 46. Ra4 a5 ({Not} 46... Rxb3 47. Rxa6 Rxe3 48. Rxf6 $17) 47. b4 (47. Kb2 {was the only defense.}) 47... axb4 48. Bxb4 Nc4 49. Be7 Kf7 50. Rxc4 {Strongly threatening Bb4.} Kxe7 {KR-KR} 51. Rc7+ Ke6 52. Rh7 e4 53. Ka3 Rb1 54. Rxh5 Re1 {Hoping for ...f5.} 55. Kb4 Rxe3 {White must now prevent ...f5.} 56. Kc4 f5 57. Rh8 Ke5 58. h5 Kf4 59. h6 Rh3 60. h7 Rh1 61. Kc3 e3 {[%cal Be4e3,Be3e2][%mdl 32]} 62. Kd3 Rd1+ 63. Ke2 Rd2+ 64. Ke1 Rh2 {( -> ...Kf3)} 65. Kf1 Kf3 {[%cal Rh2h1]} 66. Kg1 e2 {Weighted Error Value: White=0.65/Black=0.21 (precise)} 0-1

[Event "IX Famalicao Open 2022"]
[Site "Vila Nova de Famalicao"]
[Date "2022.07.26"]
[Round "3.7"]
[White "Santos, Jose Miguel Sereno"]
[Black "Krishna C R G"]
[Result "0-1"]
[ECO "C00"]
[WhiteElo "1850"]
[BlackElo "2430"]
[Annotator "TA"]
[PlyCount "45"]
[EventDate "2022.07.25"]
[EventType "tourn"]
[EventCountry "POR"]
[SourceTitle "playchess.com"]
[Source "ChessBase"]
[SourceQuality "1"]
[TimeControl "5400+30"]

{[%evp 9,45,-9,-7,-22,-8,-8,7,-20,-39,-5,-8,-22,-17,-21,0,-68,-72,-82,-67,-275,-281,-274,-259,-264,-256,-258,-232,-254,-56,-33,-34,-45,0,-91,15,-195,12,-31]} 1. e4 e6 2. d4 d5 3. Bd3 {[%cal Bf1d3,Bd3e4,Be4f3][%mdl 32]} dxe4 4. Bxe4 Nf6 5. Bf3 c5 6. c3 {C01: French: Exchange Variation.} Nc6 {[%cal Rc5d4]} 7. Ne2 e5 {Hoping for ...e4.} 8. Bg5 (8. Bxc6+ {seems wilder.} bxc6 9. O-O cxd4 10. cxd4 Bd6 11. dxe5 Bxe5 12. Qxd8+ Kxd8 13. Rd1+) 8... cxd4 9. Bxc6+ bxc6 {[%cal Bb7c6,Bc6c5][%mdl 32]} 10. cxd4 {[#]} c5 $146 {[%cal Rc5d4]} ({Predecessor:} 10... exd4 11. Bxf6 Qxf6 12. Qxd4 Qxd4 13. Nxd4 Bc5 14. Nb3 Bb4+ 15. N1d2 Ba6 16. O-O-O O-O-O {½-½ (30) Rusche,J (2170)-Hengl,C (2225) Austria 2009}) 11. Bxf6 gxf6 12. dxe5 (12. d5 $1 $11) 12... Qxd1+ $15 13. Kxd1 Ba6 14. exf6 $2 (14. Nd2 $15) 14... O-O-O+ $1 $19 15. Ke1 Bh6 16. f4 ({Not} 16. Nbc3 $2 Bd2+ 17. Kf1 Bxc3 18. bxc3 Rhe8 $19) 16... Rhe8 {[%csl LRe2,LRf4]} 17. Nbc3 Bxf4 18. Rd1 {[#]} Rxd1+ ({Black should play} 18... Rxe2+ $1 $19 {[%mdl 512]} 19. Nxe2 Re8) 19. Kxd1 $15 Rd8+ 20. Ke1 Re8 {[%mdl 1024] Black has compensation.} 21. Kf2 {[#]} (21. Kd1 $11 {keeps the balance.} Rd8+ 22. Ke1) 21... Bd2 {Black is more active.} (21... Be3+ $1 $17 22. Kg3 Bb7) 22. Kf3 $2 (22. Rd1 $11 Bg5 23. Ng3) 22... Bc4 $2 (22... Bb7+ $19 23. Kf2 Be3+ 24. Kg3 Rg8+ 25. Kh4 Rxg2) 23. h4 {Weighted Error Value: White=0.55/Black=0.50} (23. Rd1 $5 {[%cal Rd1d2]} Re3+ 24. Kf2 $11) 0-1

[Event "IX Famalicao Open 2022"]
[Site "Vila Nova de Famalicao"]
[Date "2022.07.26"]
[Round "3.8"]
[White "Akhvlediani, Irakli"]
[Black "Anishka Vikram"]
[Result "1-0"]
[ECO "D02"]
[WhiteElo "2429"]
[BlackElo "1871"]
[Annotator "TA"]
[PlyCount "59"]
[EventDate "2022.07.25"]
[EventType "tourn"]
[EventCountry "POR"]
[SourceTitle "playchess.com"]
[Source "ChessBase"]
[SourceQuality "1"]
[TimeControl "5400+30"]

{[%evp 9,59,2,25,-10,-7,-7,-6,0,34,-2,8,-1,14,8,18,7,14,11,26,18,22,29,15,25,66,61,60,58,135,138,133,106,141,131,108,106,149,129,179,178,445,437,1675,1627,1558,1522,1376,1299,29990,29991,29997,29998]} 1. d4 Nf6 2. Nf3 d5 3. Bf4 e6 4. e3 Bd6 5. Bg3 c5 6. c3 {D02: 1 d4 d5 2 Nf3 sidelines, including 2...Nf6 3 g3 and 2...Nf6 3 Bf4.} Qc7 7. dxc5 Bxg3 8. hxg3 {[%cal Og3g4] The position is equal.} Qxc5 9. Nbd2 {[%cal Og3g4]} Nc6 10. Bd3 Bd7 11. Qe2 Qb6 12. b4 {[#]} a6 $146 ({Predecessor:} 12... Qc7 13. a3 Ne5 14. Rc1 Rc8 15. Nxe5 Qxe5 16. Nf3 Rxc3 17. O-O Qc7 18. Qb2 Rxc1 19. Rxc1 {½-½ (56) Alachihin,V (2104)-Ulanov,A (2283) Dimitrovgrad 2008}) 13. a4 h6 14. e4 Qc7 15. O-O O-O 16. Rac1 Rfd8 17. e5 Ng4 {[%cal Rg4e5]} 18. Rfe1 f6 (18... Rdc8 $14) 19. exf6 $16 Nxf6 {[%cal Oe6e5] [#]} 20. b5 $1 axb5 21. axb5 Na5 22. Nd4 Re8 {[#]} 23. Bg6 $1 {White is more active.} Re7 (23... e5 $16 24. Bxe8 Rxe8) 24. Nf5 $1 $18 exf5 (24... Ree8 {is a better defense.}) 25. Qxe7 {Black must now prevent Qf7+.} Ne4 (25... Rf8 $142 26. Bxf5 Rc8) 26. Nxe4 fxe4 27. Rcd1 {[%cal Bc1d1,Bd1d5,Bd5d7][%mdl 32]} Qc8 28. Rxd5 Qxc3 {[#]} 29. Rxd7 $1 Qxe1+ (29... Qf6 30. Qxf6) 30. Kh2 {Weighted Error Value: White=0.05 (flawless) /Black=0.56} 1-0

[Event "IX Famalicao Open 2022"]
[Site "Vila Nova de Famalicao"]
[Date "2022.07.26"]
[Round "3.9"]
[White "Suarez Rozas, David"]
[Black "Umetsubo, Cesar Hidemitsu"]
[Result "0-1"]
[ECO "A46"]
[WhiteElo "1772"]
[BlackElo "2405"]
[Annotator "TA"]
[PlyCount "52"]
[EventDate "2022.07.25"]
[EventType "tourn"]
[EventCountry "POR"]
[SourceTitle "playchess.com"]
[Source "ChessBase"]
[SourceQuality "1"]
[TimeControl "5400+30"]

{[%evp 14,52,0,0,17,12,20,15,39,-139,-125,-130,-133,-152,-138,-131,-113,-223,-196,-453,-449,-439,-343,-310,-310,-478,-470,-441,-298,-481,-491,-500,-498,-489,-479,-385,-333,-325,-302,-555,-553]} 1. d4 {[%emt 0:00:02]} Nf6 {[%emt 0:00:17]} 2. Nf3 {[%emt 0:00:18]} e6 {[%emt 0:00:14]} 3. Bg5 {[%emt 0:00:29][%cal Bc1g5,Bg5h4,Bh4g3][%mdl 32]} c5 {[%emt 0:03:09]} 4. e3 {[%emt 0:03:01]} h6 {[%emt 0:06:36]} 5. Bh4 {[%emt 0:01:35]} b6 {[%emt 0:01:26]} 6. c3 {[%emt 0:02:37]} Bb7 {[%emt 0:00:23]} 7. Bd3 {[%emt 0:01:34]} Be7 {[%emt 0:08:04]} 8. Nbd2 {[%emt 0:02:32]} g5 {[%emt 0:09:45] A46: 1 d4 Nf6 2 Nf3 e6: Torre, London and Colle Systems.} 9. Bg3 {[%emt 0:01:11]} g4 {[%emt 0:00:21]} 10. Ne5 {[%emt 0:01:21]} ({Much weaker is} 10. Nh4 Rg8 11. h3 Nh5 12. hxg4 Nxg3 13. fxg3 Qc7 $15) 10... h5 {[%emt 0:00:10] The position is equal.} 11. e4 $2 {[%emt 0:07:55]} (11. dxc5 $1 $14 Bxg2 12. Rg1) 11... d6 {[%emt 0:01:30]} 12. Qa4+ {[%emt 0:05:35] [#]} Kf8 $1 {[%emt 0:00:23]} 13. Nec4 {[%emt 0:00:14] [#]} cxd4 {[%emt 0:15:43]} 14. cxd4 {[%emt 0:06:05] [#]} Nc6 $146 {[%emt 0:00:15] Threatens to win with ...h4.} ({Predecessor:} 14... d5 15. exd5 Qxd5 16. Ne3 Qd7 17. Qxd7 Nbxd7 18. h3 Kg7 19. hxg4 Nxg4 20. Rc1 Rac8 21. Rxc8 Bxc8 {½-½ (75) Miladinovic,I (2584)-Macieja,B (2613) Vrsac 2006}) 15. O-O-O {[%emt 0:00:30]} (15. h3 $17) 15... Nxd4 {[%emt 0:00:58]} 16. Na5 $2 {[%emt 0:00:32]} (16. Ne3 {was necessary.} e5 17. Bh4) 16... bxa5 $19 {[%emt 0:00:30]} 17. Qxd4 {[%emt 0:00:17]} e5 {[%emt 0:03:59]} 18. Qe3 {[%emt 0:01:22]} h4 {[%emt 0:00:40]} 19. h3 {[%emt 0:00:46]} (19. f3 $142 hxg3 20. hxg3 Rxh1 21. Rxh1) 19... hxg3 {[%emt 0:03:45]} 20. hxg4 {[%emt 0:00:16]} Rg8 {[%emt 0:04:15]} 21. g5 $2 {[%emt 0:05:46]} (21. f3) 21... Ng4 {[%emt 0:02:12]} 22. Qxg3 {[%emt 0:01:12] [#]} Bxg5 $1 {[%emt 0:00:36]} 23. Kb1 {[%emt 0:01:53]} Bf4 {[%emt 0:03:42]} 24. Qf3 {[%emt 0:01:21]} Bxd2 {[%emt 0:08:55]} 25. Rxd2 {[%emt 0:00:15]} Qg5 {[%emt 0:01:35]} 26. Bc4 $2 {[%emt 0:01:30]} (26. Qe2 {is a better defense.}) 26... Nf6 {[%emt 0:00:12] White got outplayed after the opening.  Weighted Error Value: White=0.83/Black=0.21 (precise)} 0-1